[Event "16th Serbian-ch Women 2022"]
[Site "Bajina Basta"]
[Date "2022.12.10"]
[Round "4.5"]
[White "Grozdanovic, Anastasia"]
[Black "Dimitrijevic, Andjela"]
[Result "1-0"]
[ECO "D25"]
[WhiteElo "1870"]
[BlackElo "1993"]
[Annotator "TA"]
[PlyCount "117"]
[EventDate "2022.12.06"]
[EventType "tourn"]
[EventCountry "SRB"]
[SourceTitle "playchess.com"]
[Source "ChessBase"]
[SourceQuality "1"]
[TimeControl "40/5400+30:1800+30"]

{[%evp 14,117,25,22,31,20,31,22,37,39,43,42,42,47,49,42,58,-16,0,0,2,5,16,11,30,0,0,0,0,0,0,0,0,0,0,0,0,0,0,0,0,0,0,0,0,0,0,0,73,69,140,134,197,188,200,192,397,359,366,179,373,333,328,325,339,76,76,75,76,75,75,75,75,75,75,4,17,0,0,0,0,0,0,0,0,-6,0,0,0,0,0,0,0,0,0,0,0,0,0,0,0,0,0,0,0,0]} 1. d4 {[%emt 0:00:08]} d5 {[%emt 0:00:45]} 2. c4 {[%emt 0:00:12]} dxc4 {[%emt 0:01:00]} 3. Nf3 {[%emt 0:00:11]} Nf6 {[%emt 0:02:25]} 4. e3 {[%emt 0:00:17]} Bg4 {[%emt 0:01:57]} 5. Bxc4 {[%emt 0:00:35]} e6 {[%emt 0:01:08]} 6. h3 {[%emt 0:00:27]} Bh5 {[%emt 0:01:53]} 7. Nc3 {[%emt 0:00:30]} Nbd7 {[%emt 0:07:04] 7...Nc6 gains popularity.} 8. O-O {[%emt 0:00:34]} Bb4 {[%emt 0:01:12] D25: Queen's Gambit Accepted: 4 e3: sidelines and 4...Bg4.} 9. Be2 {[%emt 0:00:46]} O-O {[%emt 0:02:16]} 10. Bd2 {[%emt 0:00:28]} c5 {[%emt 0:17:59]} 11. a3 {[%emt 0:00:32]} Bxc3 {[%emt 0:01:17]} 12. Bxc3 {[%emt 0:00:06]} Ne4 {[%emt 0:04:12]} 13. Rc1 {[%emt 0:01:47]} Nxc3 {[%emt 0:12:28]} 14. Rxc3 {[%emt 0:00:54] [#]} b6 $146 {[%emt 0:01:00]} ({Predecessor:} 14... Rc8) 15. Bb5 {[%emt 0:12:11]} (15. dxc5 $14 Nxc5 16. Rc4) 15... cxd4 {[%emt 0:01:49]} (15... Bxf3 {simplifies} 16. Qxf3 cxd4 17. exd4 Nf6) 16. Qxd4 {[%emt 0:14:01]} Bxf3 {[%emt 0:05:29]} 17. Bxd7 {[%emt 0:01:02]} Qg5 {[%emt 0:01:34][%csl Gf3][%cal Rg5g2]} 18. g3 {[%emt 0:00:10]} Rfd8 {[%emt 0:03:38]} 19. e4 {[%emt 0:02:55] Inhibits Qf5.} Be2 {[%emt 0:09:37]} 20. Re1 {[%emt 0:02:02]} Bb5 {[%emt 0:00:14]} (20... Qe7 {simplifies} 21. Rxe2 Qxd7 22. Qxd7 Rxd7 23. Rec2 g5) 21. Rc7 {[%emt 0:01:02]} Bxd7 {[%emt 0:22:03]} 22. Rxd7 {[%emt 0:00:05]} Rxd7 {[%emt 0:00:00]} 23. Qxd7 $11 {[%emt 0:00:07][%mdl 4096] Endgame KQR-KQR} Rd8 {[%emt 0:00:00]} 24. Qc7 {[%emt 0:02:58]} Qd2 {[%emt 0:00:00]} 25. Re3 {[%emt 0:04:42]} Qd7 {[%emt 0:00:19]} 26. Rc3 {[%emt 0:01:45] aiming for Qxd7.} Kf8 {[%emt 0:00:28]} 27. Qf4 {[%emt 0:01:24] Rc7 is the strong threat.} Rc8 {[%emt 0:01:31] Against Rc7} 28. Rxc8+ {[%emt 0:02:56]} Qxc8 {[%emt 0:00:01] KQ-KQ} 29. Qd6+ {[%emt 0:00:20]} Kg8 {[%emt 0:01:05]} 30. Qe7 {[%emt 0:00:55]} a5 {[%emt 0:00:26] [#]} (30... g6 $11 {remains equal.}) 31. Qd6 $1 $16 {[%emt 0:00:52] White is more active.} b5 {[%emt 0:00:38] [#]} (31... h6 $14) 32. Qb6 $1 {[%emt 0:00:31][%csl LRa5,LRb5]} g6 {[%emt 0:00:29]} (32... h5 $16) 33. Qxb5 $18 {[%emt 0:00:30]} Qc1+ {[%emt 0:00:24]} 34. Kg2 {[%emt 0:01:24]} Qe1 {[%emt 0:00:25]} (34... Qc2 {is a better defense.}) 35. Qb8+ {[%emt 0:02:42]} Kg7 {[%emt 0:00:17]} 36. Qe5+ {[%emt 0:00:05]} Kg8 $2 {[%emt 0:00:52]} (36... Kf8 37. Qc5+ Ke8) 37. Qd4 {[%emt 0:03:11]} h5 {[%emt 0:00:29]} 38. h4 {[%emt 0:00:13]} Qb1 {[%emt 0:00:32]} 39. Qe5 $2 {[%emt 0:04:51]} (39. b4 $18 axb4 40. Qxb4 (40. axb4 Qb3 $16)) 39... a4 $16 {[%emt 0:00:29]} 40. Qb8+ {[%emt 0:00:27]} Kh7 {[%emt 0:00:33]} 41. Qb7 {[%emt 0:31:49]} Kg7 {[%emt 0:10:35]} 42. Qb4 {[%emt 0:00:00]} Qd1 {[%emt 0:02:05]} 43. Qc3+ {[%emt 0:00:00]} Kg8 {[%emt 0:03:20]} 44. e5 {[%emt 0:00:00]} ({White should play} 44. Qc4 $16) 44... Qd5+ $11 {[%emt 0:06:41] The position is equal.} 45. f3 {[%emt 0:00:00]} Qb5 {[%emt 0:00:51]} 46. Kf2 {[%emt 0:00:00]} Qb6+ {[%emt 0:01:07]} 47. Ke2 {[%emt 0:00:00]} Qb5+ {[%emt 0:01:16]} 48. Ke3 {[%emt 0:00:00]} Qf1 {[%emt 0:04:55]} 49. Kf4 {[%emt 0:00:00]} Qb1 {[%emt 0:00:29]} 50. g4 {[%emt 0:00:00]} hxg4 {[%emt 0:00:53]} 51. fxg4 {[%emt 0:00:00]} Kg7 {[%emt 0:01:52]} 52. Kg5 {[%emt 0:00:25]} Qd1 {[%emt 0:01:04]} 53. Kf4 {[%emt 0:05:50]} Qf1+ {[%emt 0:00:07]} 54. Kg3 {[%emt 0:01:32]} Qg1+ {[%emt 0:00:17]} 55. Kf3 {[%emt 0:00:47]} Qh1+ {[%emt 0:01:24]} 56. Kg3 {[%emt 0:00:14]} Qg1+ {[%emt 0:00:13]} 57. Kf4 {[%emt 0:02:25]} Qf1+ {[%emt 0:00:22]} 58. Kg5 {[%emt 0:00:25]} Qd1 {[%emt 0:00:15]} 59. Kf4 {[%emt 0:01:50][%mdl 32768] Black escapes into a draw.   Weighted Error Value: White=0.18 (very precise) /Black=0.14 (very precise) . Sensor Board Error (Ke4/e5)?} 1-0

[Event "16th Serbian-ch Women 2022"]
[Site "Bajina Basta"]
[Date "2022.12.10"]
[Round "5.1"]
[White "Dimitrijevic, Andjela"]
[Black "Eric, Jovana"]
[Result "0-1"]
[ECO "B23"]
[WhiteElo "1993"]
[BlackElo "2245"]
[Annotator "TA"]
[PlyCount "111"]
[EventDate "2022.12.06"]
[EventType "tourn"]
[EventCountry "SRB"]
[SourceTitle "playchess.com"]
[Source "ChessBase"]
[SourceQuality "1"]
[TimeControl "40/5400+30:1800+30"]

{[%evp 9,111,15,14,20,20,20,20,9,14,15,17,0,0,0,15,-34,-8,-19,-6,-36,-34,-18,0,0,0,-97,-40,-26,0,-2,-7,-31,-35,-48,-42,-64,-49,-56,-27,-25,0,0,0,0,0,-3,0,0,0,-26,0,0,0,0,0,-25,-25,-25,0,-91,-91,-91,-91,-91,-91,-91,-91,-91,-91,-91,-91,-530,-519,-476,-457,-865,-864,-2339,-2247,-1003,-872,-839,-789,-736,-740,-1736,-1722,-1661,-1560,-1419,-1329,-1661,-1591,-1381,-1100,-6075,-5933,-29973,-1512,-29978,-29965,-7638,-6068,-29991]} 1. e4 {[%emt 0:00:06]} c5 {[%emt 0:00:08]} 2. Nc3 {[%emt 0:00:30]} d6 {[%emt 0:00:17]} 3. Bb5+ {[%emt 0:00:46]} Nd7 {[%emt 0:00:23]} 4. d4 {[%emt 0:01:19]} cxd4 {[%emt 0:00:46]} 5. Qxd4 {[%emt 0:00:17]} a6 {[%emt 0:00:33]} 6. Bxd7+ {[%emt 0:02:55] B23: Closed Sicilian: Lines without g3.} Bxd7 {[%emt 0:00:07]} 7. Nge2 {[%emt 0:05:05]} Rc8 {[%emt 0:03:32]} 8. f3 {[%emt 0:04:07] [#] The position is equal.} e5 $146 {[%emt 0:01:41]} ({Predecessor:} 8... Nf6 9. Bg5 e6 10. O-O-O Be7 11. Bxf6 Bxf6 12. Qxd6 Qc7 13. Qxc7 Rxc7 14. Rd3 Ke7 {1-0 (40) Guseinov,G (2666)-Dominguez Perez,L (2758) Chess.com INT 2020}) 9. Qd3 {[%emt 0:09:42]} h6 {[%emt 0:03:54]} 10. Be3 {[%emt 0:06:35]} Nf6 {[%emt 0:01:05]} 11. O-O-O {[%emt 0:13:18]} b5 {[%emt 0:04:41][%cal Bb7b5,Bb5b4][%mdl 32]} 12. Kb1 {[%emt 0:01:40]} (12. a3 $11 {is more appropriate.}) 12... b4 $15 {[%emt 0:02:51]} 13. Nd5 {[%emt 0:01:24]} Nxd5 {[%emt 0:00:13]} 14. Qxd5 {[%emt 0:15:03]} Qc7 {[%emt 0:01:34]} 15. Qd2 {[%emt 0:02:10]} Be7 {[%emt 0:02:20]} 16. g4 {[%emt 0:01:16]} Be6 {[%emt 0:02:53]} 17. Rc1 {[%emt 0:06:18] [#]} (17. Ng3 $11) 17... a5 {[%emt 0:03:13]} (17... Qa5 $1 $17 {[%csl Ge6][%cal Ra5a2]} 18. b3 d5 19. exd5 Bxd5) 18. Ng3 {[%emt 0:03:32][%cal Oc2c4]} Qc4 {[%emt 0:08:14][%csl Ge6][%cal Rc4a2]} 19. b3 {[%emt 0:00:43]} Qc3 {[%emt 0:03:07][%cal Oe7g5]} 20. Rcd1 {[%emt 0:08:17]} g6 {[%emt 0:04:15]} (20... Qxd2 {simplifies} 21. Rxd2 g6 22. Rd3 Kd7) 21. h4 {[%emt 0:03:23]} Qxd2 {[%emt 0:01:24] The board is on fire.} 22. Rxd2 {[%emt 0:00:30]} Rc3 {[%emt 0:00:26] Prevents h5.} 23. Rd3 {[%emt 0:00:12]} Rxd3 {[%emt 0:05:19]} 24. cxd3 {[%emt 0:00:01]} d5 {[%emt 0:00:07]} 25. h5 {[%emt 0:00:51]} d4 {[%emt 0:02:17]} 26. Bc1 {[%emt 0:01:58]} g5 {[%emt 0:08:45]} 27. Nf1 {[%emt 0:09:41]} Kd7 {[%emt 0:02:11]} 28. Nd2 {[%emt 0:00:07]} Rb8 {[%emt 0:04:22]} 29. Nc4 {[%emt 0:01:03]} Rb5 {[%emt 0:00:25]} 30. Rd1 {[%emt 0:00:43]} Rc5 {[%emt 0:02:03]} 31. Bb2 {[%emt 0:00:17]} Kc7 {[%emt 0:06:40]} 32. Ba1 {[%emt 0:00:41]} a4 {[%emt 0:02:12][%cal Ba5a4,Ba4a3][%mdl 32]} 33. Bb2 {[%emt 0:00:11]} Kc6 {[%emt 0:01:56]} 34. Ba1 {[%emt 0:00:20]} (34. Rc1 $11 {keeps the balance.}) 34... Bxc4 $17 {[%emt 0:02:07]} 35. dxc4 {[%emt 0:01:07][%mdl 4096] Endgame [#] KRB-KRB} a3 $1 {[%emt 0:02:19] Against Bb2} 36. Kc2 {[%emt 0:00:39]} Kb6 {[%emt 0:00:14]} 37. Kd3 {[%emt 0:01:04]} Rc6 {[%emt 0:00:06]} 38. Ke2 {[%emt 0:00:37]} Rf6 {[%emt 0:00:32]} 39. Rf1 {[%emt 0:00:37]} Rf4 {[%emt 0:00:08] Black is more active.} 40. Kd3 $2 {[%emt 0:00:50][%mdl 8192] Now White is beyond hope.} (40. Re1 $17 {is a better chance.}) 40... Bc5 $19 {[%emt 0:01:54][%cal Of7f5] And now ...f5! would win.} 41. Ke2 {[%emt 0:12:20]} f5 {[%emt 0:01:30]} 42. exf5 {[%emt 0:03:06]} (42. gxf5 $142 g4 43. Kf2) 42... e4 {[%emt 0:00:25]} 43. Bxd4 {[%emt 0:14:11]} Bxd4 {[%emt 0:05:57]} 44. fxe4 {[%emt 0:00:55]} Rxe4+ {[%emt 0:03:52] KRB-KR} 45. Kd3 {[%emt 0:00:16]} Rxg4 {[%emt 0:00:07]} 46. f6 {[%emt 0:00:44]} Bc5 {[%emt 0:00:09]} 47. Re1 {[%emt 0:01:27]} Rd4+ {[%emt 0:00:52]} 48. Kc2 {[%emt 0:00:12]} Rf4 {[%emt 0:01:11]} 49. Re6+ {[%emt 0:00:24]} Kc7 {[%emt 0:00:04] Strongly threatening ...g4.} 50. Kd1 {[%emt 0:00:33]} Kd7 {[%emt 0:01:26]} 51. Ra6 {[%emt 0:00:16]} Bd6 {[%emt 0:00:40] ...g4 is the strong threat.} 52. c5 {[%emt 0:01:21]} Bxc5 {[%emt 0:00:08] ( -> ...g4)} 53. f7 {[%emt 0:00:03]} Bf8 {[%emt 0:01:22]} (53... Bd6 $142 54. Ra7+ Ke6 55. Ra8 Rxf7 56. Re8+ Kd5 57. Kd2 Rf2+ 58. Kd3 Rxa2 59. Ra8 g4 60. Ra5+ Bc5 61. Ra6 g3 62. Rg6 Rb2 63. Rg8 Bd6 64. Rg7 Rxb3+ 65. Kc2 Rc3+ 66. Kd1 a2 67. Ra7 g2 68. Ke2 g1=Q 69. Ra5+ Ke4 70. Re5+ Bxe5 71. Kd2 Qh2+ 72. Ke1 a1=Q#) 54. Rb6 {[%emt 0:00:35]} Rxf7 {[%emt 0:00:07]} 55. Ke2 {[%emt 0:00:46] [#]} Rf2+ $3 {[%emt 0:00:30][%mdl 512]} 56. Ke3 {[%emt 0:00:55] Weighted Error Value: White=0.67/Black=0.05 (flawless)} (56. Kd3 Rxa2) 0-1

[Event "16th Serbian-ch Women 2022"]
[Site "Bajina Basta"]
[Date "2022.12.10"]
[Round "5.2"]
[White "Bojicic, Andjela"]
[Black "Grozdanovic, Anastasia"]
[Result "1-0"]
[ECO "D30"]
[WhiteElo "2117"]
[BlackElo "1870"]
[Annotator "TA"]
[PlyCount "115"]
[EventDate "2022.12.06"]
[EventType "tourn"]
[EventCountry "SRB"]
[SourceTitle "playchess.com"]
[Source "ChessBase"]
[SourceQuality "1"]
[TimeControl "40/5400+30:1800+30"]

{[%evp 9,115,21,22,19,22,22,27,29,30,25,30,26,101,108,94,59,48,52,52,20,18,8,17,8,20,22,23,9,19,10,21,0,165,165,235,100,177,119,181,195,458,351,571,564,546,457,438,432,851,840,1628,1626,1535,1514,1339,535,531,459,554,368,347,307,332,321,310,262,390,379,474,475,468,247,241,230,231,220,273,243,2361,226,330,207,243,222,409,400,397,272,29983,29984,29994,29995,29995,29983,29983,29984,29984,29975,29985,29976,29976,29977,29976,29976,29977,29976,29976,29976]} 1. d4 {[%emt 0:00:11]} d5 {[%emt 0:00:08]} 2. Nf3 {[%emt 0:00:05]} Nf6 {[%emt 0:00:12]} 3. e3 {[%emt 0:00:05]} e6 {[%emt 0:00:50]} 4. c4 {[%emt 0:01:23]} c6 {[%emt 0:01:14]} 5. Nbd2 {[%emt 0:00:53]} b6 {[%emt 0:01:37]} 6. Bd3 {[%emt 0:06:13] D30: Queen's Gambit Declined: Systems without Nc3.} Bd6 {[%emt 0:00:49]} 7. b3 {[%emt 0:00:46]} Qe7 {[%emt 0:04:39]} 8. Bb2 {[%emt 0:03:16] White has an edge.} Nbd7 {[%emt 0:04:18]} 9. Ne5 {[%emt 0:03:35]} Bb7 {[%emt 0:01:15]} 10. O-O {[%emt 0:03:24] [#]} Ba3 $146 {[%emt 0:26:08]} (10... h6 $11) ({Predecessor:} 10... O-O 11. Qe2 c5 12. f4 Ne4 13. cxd5 exd5 14. Nxe4 dxe4 15. Bb5 Nf6 16. Bc6 Rac8 17. Bxb7 Qxb7 {½-½ (37) Siegmund,R (1981)-Kunath,W (1891) Erfurt 2008}) 11. Bxa3 $16 {[%emt 0:04:06] White is much more active. The black rooks are badly placed.} Qxa3 {[%emt 0:00:05]} 12. Nxd7 {[%emt 0:09:48]} Nxd7 {[%emt 0:00:27]} 13. cxd5 {[%emt 0:09:56]} cxd5 {[%emt 0:02:29]} 14. Bb5 {[%emt 0:15:36]} (14. Rc1 $5 {[%cal Rc1c7]}) 14... Qd6 {[%emt 0:04:17]} 15. Rc1 {[%emt 0:03:33]} O-O {[%emt 0:03:13]} 16. Qe2 {[%emt 0:01:47]} a6 {[%emt 0:12:15]} 17. Bd3 {[%emt 0:00:05]} a5 {[%emt 0:02:49]} 18. Bb5 {[%emt 0:06:17]} Nb8 {[%emt 0:01:26]} 19. Nf3 {[%emt 0:02:45]} f6 {[%emt 0:08:00]} 20. Rc3 {[%emt 0:05:03]} e5 $2 {[%emt 0:03:34]} (20... Nc6 $11) 21. Rfc1 $18 {[%emt 0:01:08]} e4 {[%emt 0:02:08] [#]} (21... Na6 $142 22. dxe5 fxe5) 22. Ne1 {[%emt 0:02:55]} (22. Nh4 $1 $18 {[%cal Rh4f5] and the rest is easy.} Qe6 23. Qh5 (23. Rc7 Ba6 $18)) 22... f5 {[%emt 0:03:57]} (22... Na6 $16) 23. g3 {[%emt 0:00:05]} ({White should play} 23. Rc7 $18 Ba6 24. g3) 23... f4 {[%emt 0:05:30]} (23... Na6 $16) 24. exf4 {[%emt 0:02:04]} a4 $2 {[%emt 0:01:28]} (24... Na6 25. Ng2 Nb4) 25. bxa4 {[%emt 0:05:35] Strongly threatening Rc7.} Qf6 $2 {[%emt 0:02:34]} (25... Na6 {keeps fighting.} 26. f3 Kh8) 26. Rc7 {[%emt 0:08:07]} Ba6 {[%emt 0:00:45]} 27. Qe3 {[%emt 0:00:56]} Bxb5 {[%emt 0:00:43]} 28. axb5 {[%emt 0:00:03]} Rxa2 {[%emt 0:00:19]} (28... Qf5 $142 29. Re7 Rf7) 29. Qb3 {[%emt 0:00:11][%csl LRa2,LRd5]} Rd2 {[%emt 0:00:42]} 30. Qxd5+ {[%emt 0:00:10]} Kh8 {[%emt 0:00:04]} 31. Rc8 {[%emt 0:02:09]} h6 {[%emt 0:00:48]} 32. Qe5 {[%emt 0:00:33]} (32. Rxf8+ $142 Qxf8 33. Qxe4) 32... Nd7 {[%emt 0:01:10]} 33. Qxe4 {[%emt 0:01:50]} Rxd4 {[%emt 0:00:30]} 34. Rxf8+ {[%emt 0:01:56]} Nxf8 {[%emt 0:00:06]} 35. Qe8 {[%emt 0:00:32]} Rd8 {[%emt 0:01:13]} 36. Qc6 {[%emt 0:00:43]} Rd6 {[%emt 0:00:55]} 37. Qc2 {[%emt 0:00:38]} Ng6 {[%emt 0:00:32]} (37... Rd5 $142 38. Qc6 Qb2 39. Qxd5 Qxc1) 38. Nf3 {[%emt 0:00:29][%cal Be1f3,Bf3e5,Be5g4][%mdl 32]} Nxf4 {[%emt 0:02:37]} 39. gxf4 {[%emt 0:00:26]} Qxf4 {[%emt 0:00:05]} 40. Qc3 {[%emt 0:00:41]} (40. Qc8+ $142 Kh7 41. Rc6) 40... Rf6 {[%emt 0:03:39]} 41. Ne5 {[%emt 0:12:06] Prevents Qg4+.} (41. Qc8+ Rf8 42. Qc6 Qg4+ 43. Kf1 Rxf3 $11) 41... Qxf2+ {[%emt 0:14:38]} 42. Kh1 {[%emt 0:00:03] [#] aiming for Ng4.} Qf4 {[%emt 0:01:31] Against Ng4} 43. Re1 {[%emt 0:02:55] Inhibits Qe4+. Black must now prevent Nd7.} Qh4 $2 {[%emt 0:03:26]} (43... h5 44. Nd7 Rd6 45. Qc8+ Kh7 46. Qc2+ Kh6) 44. Qg3 $2 {[%emt 0:10:38]} (44. Nd7 {Re8+ would kill now.} Rf5 45. Re8+ Kh7 46. Nf8+ (46. Nxb6 $2 Rf1+ 47. Kg2 Rf2+ 48. Kh1 Qxh2#) 46... Rxf8 47. Qd3+ Kg8 48. Qd5+ Kh7 49. Rxf8 Qe1+ 50. Kg2 Qe2+ 51. Kh3) 44... Qd4 {[%emt 0:02:13]} (44... Qb4 $142 45. Nd7 Rf5) 45. Rg1 {[%emt 0:03:55][%csl Gg1][%cal Rg3g7]} g5 {[%emt 0:02:22]} 46. Ng4 {[%emt 0:01:50]} Re6 $2 {[%emt 0:01:44]} (46... Rf4) 47. Rf1 {[%emt 0:01:27] Threatening mate with Qb8+.} Qd5+ {[%emt 0:01:37]} 48. Qg2 {[%emt 0:00:54]} Qxb5 {[%emt 0:01:07]} (48... Qxg2+ $18 49. Kxg2 Kg7) 49. Qa8+ {[%emt 0:00:33] White mates.} Kh7 {[%emt 0:02:03]} 50. Qb7+ {[%emt 0:00:18]} Kg8 {[%emt 0:00:25]} 51. Qf7+ {[%emt 0:00:20]} Kh8 {[%emt 0:00:04]} 52. Qf8+ {[%emt 0:00:41]} Kh7 {[%emt 0:00:06]} 53. Rf7+ {[%emt 0:00:44]} Kg6 {[%emt 0:00:06]} 54. Qg7+ {[%emt 0:00:28]} ({Not} 54. Nxh6 Kh5 $11) 54... Kh5 {[%emt 0:00:07]} 55. Nf6+ {[%emt 0:00:07]} Rxf6 {[%emt 0:00:24]} 56. Qxf6 {[%emt 0:00:14]} ({Worse is} 56. Rxf6 Qd5+ 57. Kg1 Qd1+ 58. Rf1 Qg4+ 59. Kf2 (59. Kh1 Qe4+ 60. Kg1 Qg4+ 61. Kf2 Qf4+ 62. Ke2 Qe4+ 63. Kd2 Qg2+ 64. Ke1 Qe4+ 65. Kf2 Qf4+ 66. Kg2 Qg4+ 67. Kh1 Qe4+ 68. Kg1 Qg4+ $11) 59... Qf4+ 60. Kg2 Qg4+ 61. Kh1 Qe4+ 62. Kg1 Qg4+ 63. Kh1 Qe4+ 64. Kg1 Qg4+ $11) 56... Qb1+ {[%emt 0:00:55]} 57. Qf1 {[%emt 0:00:06]} Qb4 {[%emt 0:00:17]} 58. Rf6 {[%emt 0:00:33] Weighted Error Value: White=0.61/Black=0.63} 1-0

[Event "16th Serbian-ch Women 2022"]
[Site "Bajina Basta"]
[Date "2022.12.10"]
[Round "5.3"]
[White "Vujcic, Milena"]
[Black "Srdanovic, Jovana"]
[Result "1/2-1/2"]
[ECO "B97"]
[WhiteElo "2029"]
[BlackElo "2189"]
[Annotator "TA"]
[PlyCount "66"]
[EventDate "2022.12.06"]
[EventType "tourn"]
[EventCountry "SRB"]
[SourceTitle "playchess.com"]
[Source "ChessBase"]
[SourceQuality "1"]
[TimeControl "40/5400+30:1800+30"]

{[%evp 20,66,32,25,29,31,23,10,10,0,0,-17,0,-41,-39,-43,-56,-44,-41,-40,-42,-30,-33,-47,-31,-29,-32,-69,-69,-77,-69,-71,-72,-72,-13,-20,-6,-8,-13,-11,0,0,0,0,0,0,0,0,0]} 1. e4 {[%emt 0:00:03]} c5 {[%emt 0:00:30]} 2. Nf3 {[%emt 0:00:05]} d6 {[%emt 0:00:07]} 3. d4 {[%emt 0:00:05]} cxd4 {[%emt 0:00:06]} 4. Nxd4 {[%emt 0:00:04]} Nf6 {[%emt 0:00:10]} 5. Nc3 {[%emt 0:00:04]} a6 {[%emt 0:00:16]} 6. Bg5 {[%emt 0:00:05]} e6 {[%emt 0:00:13]} 7. f4 {[%emt 0:00:05]} Qb6 {[%emt 0:00:05]} 8. Qd2 {[%emt 0:00:25]} Nc6 {[%emt 0:00:46]} 9. O-O-O {[%emt 0:01:05]} Qxd4 {[%emt 0:00:18]} 10. Qxd4 {[%emt 0:00:20]} Nxd4 {[%emt 0:00:08]} 11. Rxd4 {[%emt 0:00:04]} h6 {[%emt 0:00:29] B97: Sicilian Najdorf: Poisoned Pawn.} 12. Bxf6 {[%emt 0:09:56]} gxf6 {[%emt 0:00:06]} 13. g3 {[%emt 0:01:17]} Bd7 {[%emt 0:05:31] [#]} 14. Bg2 $146 {[%emt 0:00:59]} ({Predecessor:} 14. f5 Rc8 15. Bh3 h5 16. Rd3 h4 17. Kd1 Ke7 18. Ne2 hxg3 19. hxg3 Bh6 20. Nf4 {0-1 (41) Carton,P (2240)-Wessman,R (2500) Novi Sad 1990}) 14... h5 {[%emt 0:07:59]} 15. Rd3 {[%emt 0:05:03]} Bc6 {[%emt 0:16:56]} 16. Bf3 {[%emt 0:01:12]} h4 {[%emt 0:02:27]} 17. f5 {[%emt 0:11:19]} hxg3 {[%emt 0:07:06]} 18. hxg3 {[%emt 0:01:42]} Rxh1+ {[%emt 0:00:14]} 19. Bxh1 {[%emt 0:00:03]} Bh6+ {[%emt 0:01:48]} 20. Kd1 {[%emt 0:00:19]} Ke7 {[%emt 0:00:14]} 21. g4 {[%emt 1:06:45]} Rg8 {[%emt 0:09:39]} 22. Rh3 $1 {[%emt 0:00:00]} Bf4 {[%emt 0:00:16]} 23. fxe6 {[%emt 0:00:00]} fxe6 {[%emt 0:03:16][%cal Of4e5]} 24. Bf3 {[%emt 0:00:00]} Be5 {[%emt 0:01:42] This pair of bishops is nice.} 25. Kd2 {[%emt 0:00:00]} Rg7 {[%emt 0:03:05]} 26. b4 {[%emt 0:00:00]} Kd7 {[%emt 0:05:05]} (26... Kf8 $17) 27. Ne2 $11 {[%emt 0:00:00] The position is equal.} Bb5 {[%emt 0:06:37]} 28. c3 {[%emt 0:00:00]} Bc4 {[%emt 0:09:21]} 29. a4 {[%emt 0:00:00]} b6 {[%emt 0:02:15]} 30. Rh8 {[%emt 0:00:00]} Kc7 {[%emt 0:02:39]} 31. Nd4 {[%emt 0:00:00]} Bxd4 {[%emt 0:03:38]} 32. cxd4 {[%emt 0:00:00]} d5 {[%emt 0:00:17]} 33. exd5 {[%emt 0:00:00]} Bxd5 {[%emt 0:00:16] Weighted Error Value: White=0.06 (flawless) /Black=0.08 (flawless)} 1/2-1/2